[Event "Live Chess"]
[Site "Chess.com"]
[Date "2024.06.02"]
[Round "-"]
[White "ameetghasi100"]
[Black "davigator"]
[Result "1-0"]
[WhiteElo "2750"]
[BlackElo "2336"]
[TimeControl "300"]
[EndTime "7:48:44 PDT"]
[Termination "ameetghasi100 won by resignation"]

1. c4 {[%clk 0:04:59.7]} 1... Nf6 {[%clk 0:04:55.6]} 2. Nf3 {[%clk 0:04:59.2]}
2... g6 {[%clk 0:04:55.2]} 3. Nc3 {[%clk 0:04:58.6]} 3... Bg7 {[%clk 0:04:55.1]}
4. d4 {[%clk 0:04:58.3]} 4... O-O {[%clk 0:04:54.6]} 5. e3 {[%clk 0:04:57.8]}
5... d6 {[%clk 0:04:54.2]} 6. Be2 {[%clk 0:04:57.6]} 6... Nc6 {[%clk 0:04:53.4]}
7. O-O {[%clk 0:04:57.3]} 7... e5 {[%clk 0:04:52.6]} 8. dxe5 {[%clk 0:04:57]}
8... dxe5 {[%clk 0:04:51.3]} 9. Qxd8 {[%clk 0:04:56.3]} 9... Rxd8 {[%clk
0:04:50.4]} 10. a3 {[%clk 0:04:54.4]} 10... Be6 {[%clk 0:04:48.9]} 11. Ng5
{[%clk 0:04:53.4]} 11... Nd7 {[%clk 0:04:44.3]} 12. Nxe6 {[%clk 0:04:52.3]}
12... fxe6 {[%clk 0:04:43]} 13. b4 {[%clk 0:04:51.1]} 13... e4 {[%clk
0:04:36.2]} 14. Bb2 {[%clk 0:04:50.3]} 14... Bxc3 {[%clk 0:04:34.8]} 15. Bxc3
{[%clk 0:04:49.4]} 15... Nce5 {[%clk 0:04:34.3]} 16. Rad1 {[%clk 0:04:47.1]}
16... Kf7 {[%clk 0:04:29.3]} 17. f4 {[%clk 0:04:45.4]} 17... exf3 {[%clk
0:04:27.3]} 18. gxf3 {[%clk 0:04:44.9]} 18... Nc6 {[%clk 0:04:22.3]} 19. f4
{[%clk 0:04:42.1]} 19... Nb6 {[%clk 0:04:20.3]} 20. e4 {[%clk 0:04:40.2]} 20...
Na4 {[%clk 0:04:17.7]} 21. Ba1 {[%clk 0:04:39.1]} 21... a5 {[%clk 0:04:14.4]}
22. b5 {[%clk 0:04:38.2]} 22... Ne7 {[%clk 0:04:13.4]} 23. Be5 {[%clk
0:04:29.4]} 23... c6 {[%clk 0:04:05.1]} 24. h4 {[%clk 0:04:28.7]} 24... Nc5
{[%clk 0:04:00.7]} 25. Bf3 {[%clk 0:04:20.2]} 25... Nd3 {[%clk 0:03:59.6]} 26.
Bc7 {[%clk 0:04:19.2]} 26... Rd7 {[%clk 0:03:58.5]} 27. b6 {[%clk 0:04:18.4]}
27... Ke8 {[%clk 0:03:55.4]} 28. Bg4 {[%clk 0:04:12.3]} 28... Nc5 {[%clk
0:03:51.4]} 29. Rxd7 {[%clk 0:04:11]} 29... Kxd7 {[%clk 0:03:49.5]} 30. Rd1+
{[%clk 0:04:10.3]} 30... Ke8 {[%clk 0:03:48.7]} 31. Rd4 {[%clk 0:04:05.9]} 31...
h5 {[%clk 0:03:45.4]} 32. Bh3 {[%clk 0:04:04.9]} 32... a4 {[%clk 0:03:43.4]} 33.
Kf2 {[%clk 0:04:02.9]} 33... Kf7 {[%clk 0:03:36.6]} 34. Ke3 {[%clk 0:04:00.1]}
34... Ke8 {[%clk 0:03:19.8]} 35. Bd6 {[%clk 0:03:57.1]} 35... Nd7 {[%clk
0:03:15.8]} 36. Bxe6 {[%clk 0:03:54.8]} 36... Nxb6 {[%clk 0:03:14.6]} 37. c5
{[%clk 0:03:54.2]} 37... Nbc8 {[%clk 0:03:12.3]} 38. Bc7 {[%clk 0:03:51]} 38...
Na7 {[%clk 0:03:05.3]} 39. Rxa4 {[%clk 0:03:50.3]} 39... Nec8 {[%clk 0:03:01]}
40. Bb6 {[%clk 0:03:47.6]} 40... Ke7 {[%clk 0:02:56]} 41. Bxc8 {[%clk
0:03:46.8]} 41... Rxc8 {[%clk 0:02:55.6]} 42. Rxa7 {[%clk 0:03:46.1]} 1-0

[Event "Live Chess"]
[Site "Chess.com"]
[Date "2024.06.02"]
[Round "-"]
[White "E2E4colchester"]
[Black "Pablo_dmp"]
[Result "0-1"]
[WhiteElo "1162"]
[BlackElo "1996"]
[TimeControl "300"]
[EndTime "7:48:46 PDT"]
[Termination "Pablo_dmp won on time"]

1. d4 {[%clk 0:04:56.9]} 1... c5 {[%clk 0:04:59.7]} 2. dxc5 {[%clk 0:04:55.6]}
2... e6 {[%clk 0:04:59.2]} 3. Nc3 {[%clk 0:04:54.8]} 3... Bxc5 {[%clk
0:04:58.8]} 4. e3 {[%clk 0:04:53.7]} 4... Nf6 {[%clk 0:04:57.8]} 5. b3 {[%clk
0:04:53]} 5... a6 {[%clk 0:04:56.9]} 6. Bb2 {[%clk 0:04:52.3]} 6... Nc6 {[%clk
0:04:56.3]} 7. Nf3 {[%clk 0:04:51.4]} 7... O-O {[%clk 0:04:55.6]} 8. Bd3 {[%clk
0:04:49.7]} 8... d5 {[%clk 0:04:54.5]} 9. Qe2 {[%clk 0:04:48.1]} 9... e5 {[%clk
0:04:53.6]} 10. O-O-O {[%clk 0:04:45.1]} 10... e4 {[%clk 0:04:52.4]} 11. Nd4
{[%clk 0:04:40.4]} 11... exd3 {[%clk 0:04:50.9]} 12. Qxd3 {[%clk 0:04:39.4]}
12... Ne5 {[%clk 0:04:48.2]} 13. Qe2 {[%clk 0:04:32.9]} 13... Qb6 {[%clk
0:04:46.8]} 14. a4 {[%clk 0:04:24.4]} 14... Bd7 {[%clk 0:04:42.5]} 15. f4 {[%clk
0:04:22.4]} 15... Nc6 {[%clk 0:04:37.5]} 16. Rd3 {[%clk 0:04:21]} 16... Rac8
{[%clk 0:04:34.7]} 17. Nxc6 {[%clk 0:04:03.5]} 17... bxc6 {[%clk 0:04:31.2]} 18.
e4 {[%clk 0:03:58.8]} 18... dxe4 {[%clk 0:04:27]} 19. Nxe4 {[%clk 0:03:57.9]}
19... Bf5 {[%clk 0:04:13.4]} 20. Nxf6+ {[%clk 0:03:55.2]} 20... gxf6 {[%clk
0:04:13.3]} 21. Rg3+ {[%clk 0:03:33.9]} 21... Bg6 {[%clk 0:04:00.6]} 22. f5
{[%clk 0:03:26.9]} 22... Bd4 {[%clk 0:03:57.9]} 23. fxg6 {[%clk 0:03:08.9]}
23... Bxb2+ {[%clk 0:03:54.9]} 24. Kxb2 {[%clk 0:03:08.1]} 24... hxg6 {[%clk
0:03:51.7]} 25. Qh5 {[%clk 0:02:29.4]} 25... Qd4+ {[%clk 0:03:42.5]} 26. Ka2
{[%clk 0:02:23.2]} 26... Qd2 {[%clk 0:03:25.9]} 27. Qc5 {[%clk 0:02:14.4]} 27...
Rce8 {[%clk 0:03:10.3]} 28. Qxc6 {[%clk 0:02:04.9]} 28... Re2 {[%clk 0:03:02.9]}
29. Rc1 {[%clk 0:01:47.3]} 29... Kg7 {[%clk 0:02:55.1]} 30. Rb1 {[%clk
0:01:37.6]} 30... Qxc2+ {[%clk 0:02:46.6]} 31. Qxc2 {[%clk 0:01:33.7]} 31...
Rxc2+ {[%clk 0:02:46.5]} 32. Rb2 {[%clk 0:01:31.9]} 32... Rc5 {[%clk 0:02:42.2]}
33. Ka3 {[%clk 0:01:29.7]} 33... a5 {[%clk 0:02:40.6]} 34. b4 {[%clk 0:01:27.3]}
34... axb4+ {[%clk 0:02:37]} 35. Rxb4 {[%clk 0:01:25.4]} 35... Rh8 {[%clk
0:02:31.9]} 36. h3 {[%clk 0:01:23.6]} 36... Ra8 {[%clk 0:02:28.6]} 37. Rgb3
{[%clk 0:01:18.9]} 37... Raa5 {[%clk 0:02:20.8]} 38. Rb5 {[%clk 0:01:13.5]}
38... g5 {[%clk 0:02:00.6]} 39. Rxc5 {[%clk 0:01:10.5]} 39... Rxc5 {[%clk
0:01:59.4]} 40. Rb5 {[%clk 0:01:08.8]} 40... Rc2 {[%clk 0:01:57.5]} 41. g4
{[%clk 0:01:05.7]} 41... Rc3+ {[%clk 0:01:55.3]} 42. Rb3 {[%clk 0:01:03.8]}
42... Rc7 {[%clk 0:01:54.1]} 43. a5 {[%clk 0:01:02.5]} 43... Kg6 {[%clk
0:01:51.8]} 44. Ka4 {[%clk 0:01:01.5]} 44... f5 {[%clk 0:01:47.2]} 45. gxf5+
{[%clk 0:00:59.3]} 45... Kxf5 {[%clk 0:01:47.1]} 46. a6 {[%clk 0:00:56.9]} 46...
Ra7 {[%clk 0:01:41.6]} 47. Ka5 {[%clk 0:00:55.5]} 47... f6 {[%clk 0:01:39.1]}
48. Rb7 {[%clk 0:00:53]} 48... Ra8 {[%clk 0:01:37.5]} 49. Kb6 {[%clk 0:00:50]}
49... Rh8 {[%clk 0:01:35.4]} 50. a7 {[%clk 0:00:47.5]} 50... Kf4 {[%clk
0:01:28.9]} 51. Rb8 {[%clk 0:00:44.6]} 51... Rxh3 {[%clk 0:01:27.3]} 52. a8=Q
{[%clk 0:00:42.1]} 52... Rb3+ {[%clk 0:01:24.9]} 53. Kc7 {[%clk 0:00:39.9]}
53... Rc3+ {[%clk 0:01:23.9]} 54. Kd7 {[%clk 0:00:37.3]} 54... Rd3+ {[%clk
0:01:22.7]} 55. Ke7 {[%clk 0:00:36.5]} 55... f5 {[%clk 0:01:20.1]} 56. Rb4+
{[%clk 0:00:33.3]} 56... Kg3 {[%clk 0:01:17.9]} 57. Qb8+ {[%clk 0:00:21.6]}
57... f4 {[%clk 0:01:16.4]} 58. Rb2 {[%clk 0:00:18.7]} 58... g4 {[%clk 0:01:13]}
59. Qb6 {[%clk 0:00:17.6]} 59... Re3+ {[%clk 0:01:07]} 60. Kf7 {[%clk
0:00:06.6]} 60... Rf3 {[%clk 0:01:02.5]} 0-1

[Event "Live Chess"]
[Site "Chess.com"]
[Date "2024.06.02"]
[Round "-"]
[White "Purple1szed"]
[Black "CarmelJane"]
[Result "0-1"]
[WhiteElo "2006"]
[BlackElo "2044"]
[TimeControl "300"]
[EndTime "7:49:17 PDT"]
[Termination "CarmelJane won by resignation"]

1. c4 {[%clk 0:04:58.3]} 1... e5 {[%clk 0:04:57.5]} 2. Nc3 {[%clk 0:04:57.4]}
2... Nf6 {[%clk 0:04:55.3]} 3. g3 {[%clk 0:04:56.7]} 3... Bb4 {[%clk 0:04:54.9]}
4. Bg2 {[%clk 0:04:55.5]} 4... O-O {[%clk 0:04:53.4]} 5. e4 {[%clk 0:04:51.4]}
5... Bxc3 {[%clk 0:04:51.8]} 6. dxc3 {[%clk 0:04:46.9]} 6... d6 {[%clk
0:04:50.2]} 7. Ne2 {[%clk 0:04:44.9]} 7... Be6 {[%clk 0:04:46.3]} 8. b3 {[%clk
0:04:43.4]} 8... Nbd7 {[%clk 0:04:44.3]} 9. O-O {[%clk 0:04:42.5]} 9... Nc5
{[%clk 0:04:34.5]} 10. Qc2 {[%clk 0:04:41.1]} 10... h6 {[%clk 0:04:28.5]} 11. f4
{[%clk 0:04:39.8]} 11... exf4 {[%clk 0:04:27.3]} 12. Nxf4 {[%clk 0:04:39.7]}
12... Bd7 {[%clk 0:04:21]} 13. b4 {[%clk 0:04:32.8]} 13... Ne6 {[%clk
0:04:18.9]} 14. Nd5 {[%clk 0:04:29.6]} 14... Ng4 {[%clk 0:04:07.7]} 15. h3
{[%clk 0:04:09]} 15... Ne5 {[%clk 0:04:04.6]} 16. Bxh6 {[%clk 0:04:07.7]} 16...
gxh6 {[%clk 0:03:55.7]} 17. Nf6+ {[%clk 0:04:05.3]} 17... Kg7 {[%clk 0:03:43.4]}
18. Nh5+ {[%clk 0:03:52.1]} 18... Kh8 {[%clk 0:03:39.4]} 19. Qd2 {[%clk
0:03:48.4]} 19... Qg5 {[%clk 0:03:36.6]} 20. Qe2 {[%clk 0:03:39.5]} 20... Bc6
{[%clk 0:03:13.3]} 21. h4 {[%clk 0:03:38]} 21... Qg4 {[%clk 0:03:06.1]} 22. Qxg4
{[%clk 0:03:32.9]} 22... Nxg4 {[%clk 0:03:04.5]} 23. b5 {[%clk 0:03:32.2]} 23...
Bd7 {[%clk 0:03:00.1]} 24. Rad1 {[%clk 0:03:27.4]} 24... Ne3 {[%clk 0:02:57.4]}
0-1

[Event "Live Chess"]
[Site "Chess.com"]
[Date "2024.06.02"]
[Round "-"]
[White "TheSmoulderingMaster"]
[Black "elephantgerrald"]
[Result "1-0"]
[WhiteElo "1781"]
[BlackElo "852"]
[TimeControl "300"]
[EndTime "7:49:29 PDT"]
[Termination "TheSmoulderingMaster won on time"]

1. e4 {[%clk 0:04:56.5]} 1... e5 {[%clk 0:04:58.3]} 2. Nf3 {[%clk 0:04:54.7]}
2... Nf6 {[%clk 0:04:54.8]} 3. Nxe5 {[%clk 0:04:52.8]} 3... d6 {[%clk
0:04:51.9]} 4. Nf3 {[%clk 0:04:51.6]} 4... Be7 {[%clk 0:04:25]} 5. Nc3 {[%clk
0:04:36.5]} 5... O-O {[%clk 0:04:12.3]} 6. Bc4 {[%clk 0:04:33.3]} 6... Nc6
{[%clk 0:03:55.8]} 7. O-O {[%clk 0:04:29.8]} 7... Bg4 {[%clk 0:03:23.9]} 8. h3
{[%clk 0:04:27.2]} 8... Bxf3 {[%clk 0:03:21.9]} 9. Qxf3 {[%clk 0:04:25.4]} 9...
Nd4 {[%clk 0:01:35.7]} 10. Qg3 {[%clk 0:04:20.1]} 10... Nxc2 {[%clk 0:01:33]}
11. Rb1 {[%clk 0:04:17.8]} 11... Nb4 {[%clk 0:01:29.9]} 12. a3 {[%clk
0:04:14.9]} 12... Nc6 {[%clk 0:01:11.7]} 13. d3 {[%clk 0:04:11.1]} 13... Nd4
{[%clk 0:01:06.7]} 14. Bg5 {[%clk 0:04:06]} 14... d5 {[%clk 0:00:38.6]} 15. Bxf6
{[%clk 0:04:01.2]} 15... Bxf6 {[%clk 0:00:06]} 16. e5 {[%clk 0:04:01.1]} 16...
Bxe5 {[%clk 0:00:02]} 17. Qxe5 {[%clk 0:03:58.5]} 17... dxc4 {[%clk 0:00:01.2]}
18. Nd5 {[%clk 0:03:55.7]} 1-0

[Event "Live Chess"]
[Site "Chess.com"]
[Date "2024.06.02"]
[Round "-"]
[White "JanMur7"]
[Black "TigerTank70"]
[Result "1-0"]
[WhiteElo "2283"]
[BlackElo "2179"]
[TimeControl "300"]
[EndTime "7:49:32 PDT"]
[Termination "JanMur7 won by resignation"]

1. c4 {[%clk 0:04:59]} 1... e5 {[%clk 0:04:57.7]} 2. Nf3 {[%clk 0:04:58.2]} 2...
Nc6 {[%clk 0:04:55.8]} 3. e4 {[%clk 0:04:55.5]} 3... d6 {[%clk 0:04:50.4]} 4. d4
{[%clk 0:04:53.6]} 4... exd4 {[%clk 0:04:48.3]} 5. Nxd4 {[%clk 0:04:53.5]} 5...
Be7 {[%clk 0:04:42.4]} 6. Nc3 {[%clk 0:04:51.3]} 6... Bf6 {[%clk 0:04:37.6]} 7.
Be3 {[%clk 0:04:49.3]} 7... Nge7 {[%clk 0:04:28.2]} 8. Be2 {[%clk 0:04:40.8]}
8... Ng6 {[%clk 0:04:24]} 9. Nxc6 {[%clk 0:04:38.3]} 9... bxc6 {[%clk
0:04:21.7]} 10. O-O {[%clk 0:04:38.2]} 10... a5 {[%clk 0:04:17.8]} 11. Qa4
{[%clk 0:04:29]} 11... Bd7 {[%clk 0:04:12.6]} 12. c5 {[%clk 0:04:27.7]} 12...
O-O {[%clk 0:04:08.1]} 13. cxd6 {[%clk 0:04:26.1]} 13... cxd6 {[%clk 0:04:06.1]}
14. Rfd1 {[%clk 0:04:25.4]} 14... Qe7 {[%clk 0:03:56.6]} 15. Qa3 {[%clk
0:04:20.2]} 15... c5 {[%clk 0:03:32.8]} 16. Nd5 {[%clk 0:04:16]} 16... Qd8
{[%clk 0:03:12.9]} 17. Nxf6+ {[%clk 0:04:08.6]} 17... Qxf6 {[%clk 0:03:10.3]}
18. Bxc5 {[%clk 0:04:07.2]} 18... dxc5 {[%clk 0:02:53.8]} 19. Rxd7 {[%clk
0:04:07.1]} 19... Ne5 {[%clk 0:02:51.1]} 20. Rdd1 {[%clk 0:03:47.6]} 20... Qc6
{[%clk 0:02:36.6]} 21. Qe3 {[%clk 0:03:41.3]} 21... Rab8 {[%clk 0:02:30.8]} 22.
b3 {[%clk 0:03:15]} 22... Rfe8 {[%clk 0:02:19.4]} 23. Rac1 {[%clk 0:03:07.9]}
23... Rbc8 {[%clk 0:02:17.6]} 24. h3 {[%clk 0:03:02.4]} 24... Nd7 {[%clk
0:01:48.3]} 25. Bg4 {[%clk 0:02:48.3]} 25... Rc7 {[%clk 0:01:34.1]} 26. Bxd7
{[%clk 0:02:42.5]} 26... Rxd7 {[%clk 0:01:30.6]} 27. Rxd7 {[%clk 0:02:42.4]}
27... Qxd7 {[%clk 0:01:27.4]} 28. Qxc5 {[%clk 0:02:42]} 28... h6 {[%clk
0:01:18.3]} 29. Qxa5 {[%clk 0:02:31.8]} 29... Rxe4 {[%clk 0:01:12.3]} 30. Qa8+
{[%clk 0:02:26.3]} 30... Re8 {[%clk 0:01:11.2]} 31. Qc6 {[%clk 0:02:24.9]} 31...
Qe7 {[%clk 0:01:08.3]} 32. Qc2 {[%clk 0:02:18.2]} 32... Qb4 {[%clk 0:01:02.7]}
33. a4 {[%clk 0:02:13.7]} 33... Rb8 {[%clk 0:00:55.6]} 34. Rb1 {[%clk
0:02:07.1]} 34... Kh8 {[%clk 0:00:50.3]} 35. g3 {[%clk 0:01:59.6]} 35... g6
{[%clk 0:00:46.6]} 36. h4 {[%clk 0:01:58.6]} 36... Kh7 {[%clk 0:00:43.6]} 37.
Qc7 {[%clk 0:01:53.8]} 37... Kg7 {[%clk 0:00:38.1]} 38. Rc1 {[%clk 0:01:39.5]}
38... Rb7 {[%clk 0:00:33.8]} 39. Qc3+ {[%clk 0:01:36.2]} 1-0

[Event "Live Chess"]
[Site "Chess.com"]
[Date "2024.06.02"]
[Round "-"]
[White "GoldsmanB"]
[Black "Dashman93"]
[Result "0-1"]
[WhiteElo "1109"]
[BlackElo "2156"]
[TimeControl "300"]
[EndTime "7:49:45 PDT"]
[Termination "Dashman93 won by resignation"]

1. d4 {[%clk 0:04:58.2]} 1... Nf6 {[%clk 0:04:59.9]} 2. c4 {[%clk 0:04:56.1]}
2... e5 {[%clk 0:04:58.5]} 3. dxe5 {[%clk 0:04:53.8]} 3... Ng4 {[%clk 0:04:58]}
4. f4 {[%clk 0:04:50.4]} 4... Bc5 {[%clk 0:04:56.3]} 5. Nh3 {[%clk 0:04:29.7]}
5... Nc6 {[%clk 0:04:53.4]} 6. Nc3 {[%clk 0:04:28.1]} 6... d6 {[%clk 0:04:47.9]}
7. Qd5 {[%clk 0:04:26.8]} 7... Be6 {[%clk 0:04:46.6]} 8. Qxc5 {[%clk 0:04:22.8]}
8... dxc5 {[%clk 0:04:45.4]} 9. Be3 {[%clk 0:04:19.2]} 9... Nxe3 {[%clk
0:04:43.8]} 10. Kf2 {[%clk 0:04:16.8]} 10... Ng4+ {[%clk 0:04:42.5]} 11. Kg3
{[%clk 0:04:15.5]} 11... Nd4 {[%clk 0:04:40.9]} 0-1

[Event "Live Chess"]
[Site "Chess.com"]
[Date "2024.06.02"]
[Round "-"]
[White "ShanthamGrarks"]
[Black "lateforthesky"]
[Result "0-1"]
[WhiteElo "1899"]
[BlackElo "2078"]
[TimeControl "300"]
[EndTime "7:50:04 PDT"]
[Termination "lateforthesky won on time"]

1. d4 {[%clk 0:04:53.4]} 1... Nf6 {[%clk 0:04:57.9]} 2. Nc3 {[%clk 0:04:40.6]}
2... d5 {[%clk 0:04:56.1]} 3. Bf4 {[%clk 0:04:38.1]} 3... g6 {[%clk 0:04:55.4]}
4. e3 {[%clk 0:04:36.1]} 4... Bg7 {[%clk 0:04:54.8]} 5. Be2 {[%clk 0:04:30]}
5... O-O {[%clk 0:04:51.2]} 6. h4 {[%clk 0:04:29.1]} 6... c5 {[%clk 0:04:47.7]}
7. h5 {[%clk 0:04:22.2]} 7... cxd4 {[%clk 0:04:46.8]} 8. exd4 {[%clk 0:04:21]}
8... Nc6 {[%clk 0:04:45.7]} 9. hxg6 {[%clk 0:04:18.9]} 9... fxg6 {[%clk
0:04:44.2]} 10. Qd2 {[%clk 0:04:08.7]} 10... Qa5 {[%clk 0:03:35.7]} 11. Nf3
{[%clk 0:03:57.8]} 11... Ne4 {[%clk 0:03:31.6]} 12. Nxe4 {[%clk 0:03:53.4]}
12... dxe4 {[%clk 0:03:30.8]} 13. Qxa5 {[%clk 0:03:52]} 13... Nxa5 {[%clk
0:03:29.7]} 14. Ng5 {[%clk 0:03:09.5]} 14... Rxf4 {[%clk 0:03:24.3]} 15. Nxh7
{[%clk 0:03:03.6]} 15... e6 {[%clk 0:02:39.7]} 16. c3 {[%clk 0:02:43.8]} 16...
Bd7 {[%clk 0:02:36.8]} 17. g3 {[%clk 0:02:41.4]} 17... Rf7 {[%clk 0:02:30.8]}
18. Ng5 {[%clk 0:02:39.4]} 18... Re7 {[%clk 0:02:27.3]} 19. Nxe4 {[%clk
0:02:38.3]} 19... a6 {[%clk 0:02:13.8]} 20. Nc5 {[%clk 0:02:26.8]} 20... Bc6
{[%clk 0:02:09.5]} 21. Rh4 {[%clk 0:02:20.5]} 21... Bf6 {[%clk 0:01:43.5]} 22.
Rg4 {[%clk 0:02:15.5]} 22... Kf7 {[%clk 0:01:42.1]} 23. b4 {[%clk 0:02:12]}
23... b6 {[%clk 0:01:36.3]} 24. Nd3 {[%clk 0:02:02.4]} 24... Nb7 {[%clk
0:01:33.4]} 25. Rf4 {[%clk 0:01:59.7]} 25... Kg7 {[%clk 0:01:21.9]} 26. O-O-O
{[%clk 0:01:55.8]} 26... Rh8 {[%clk 0:01:18.7]} 27. Rg4 {[%clk 0:01:46.1]} 27...
Nd6 {[%clk 0:01:15.1]} 28. Nf4 {[%clk 0:01:44]} 28... Rh6 {[%clk 0:01:12]} 29.
Bd3 {[%clk 0:01:42.8]} 29... Nf5 {[%clk 0:01:10.3]} 30. Nxe6+ {[%clk 0:01:36.1]}
30... Rxe6 {[%clk 0:01:08]} 31. Bxf5 {[%clk 0:01:34.9]} 31... Re2 {[%clk
0:01:06.8]} 32. Rd2 {[%clk 0:01:21.8]} 32... Rxd2 {[%clk 0:00:58.8]} 33. Kxd2
{[%clk 0:01:21.7]} 33... Bf3 {[%clk 0:00:57.2]} 34. Rf4 {[%clk 0:01:15.7]} 34...
gxf5 {[%clk 0:00:52.1]} 35. Rxf3 {[%clk 0:01:13.3]} 35... Kg6 {[%clk 0:00:51.2]}
36. Kd3 {[%clk 0:01:10.6]} 36... Rh1 {[%clk 0:00:48.7]} 37. Re3 {[%clk
0:01:07.2]} 37... Kf7 {[%clk 0:00:43.1]} 38. Re2 {[%clk 0:01:03.4]} 38... b5
{[%clk 0:00:37.5]} 39. a4 {[%clk 0:00:54.8]} 39... Bg5 {[%clk 0:00:27.6]} 40.
axb5 {[%clk 0:00:51.8]} 40... axb5 {[%clk 0:00:25.9]} 41. Ra2 {[%clk 0:00:44.2]}
41... Rd1+ {[%clk 0:00:20.8]} 42. Ke2 {[%clk 0:00:43]} 42... Rc1 {[%clk
0:00:20]} 43. Ra7+ {[%clk 0:00:34.9]} 43... Kg6 {[%clk 0:00:18.4]} 44. Rc7
{[%clk 0:00:33.4]} 44... Rc2+ {[%clk 0:00:16.5]} 45. Kf3 {[%clk 0:00:32.5]}
45... Bf6 {[%clk 0:00:11.9]} 46. Rc6 {[%clk 0:00:24.1]} 46... Kf7 {[%clk
0:00:10.5]} 47. Rc5 {[%clk 0:00:19.6]} 47... Ke6 {[%clk 0:00:06.9]} 48. Rxb5
{[%clk 0:00:18.3]} 48... Rxc3+ {[%clk 0:00:05.5]} 49. Kg2 {[%clk 0:00:16.1]}
49... Bxd4 {[%clk 0:00:04.3]} 50. Rb8 {[%clk 0:00:10.3]} 50... Rc2 {[%clk
0:00:03.9]} 51. Re8+ {[%clk 0:00:08.6]} 51... Kf7 {[%clk 0:00:03]} 52. Rd8
{[%clk 0:00:04.4]} 52... Rxf2+ {[%clk 0:00:02.5]} 53. Kh3 {[%clk 0:00:03.1]}
53... Be3 {[%clk 0:00:01.5]} 54. Rd3 {[%clk 0:00:01.6]} 54... Re2 {[%clk
0:00:00.7]} 0-1

[Event "Live Chess"]
[Site "Chess.com"]
[Date "2024.06.02"]
[Round "-"]
[White "StoreySniper"]
[Black "MagnersCarlsberg2870"]
[Result "1-0"]
[WhiteElo "2489"]
[BlackElo "1767"]
[TimeControl "300"]
[EndTime "7:50:06 PDT"]
[Termination "StoreySniper won by resignation"]

1. e4 {[%clk 0:04:51.6]} 1... d5 {[%clk 0:04:57.3]} 2. exd5 {[%clk 0:04:50.1]}
2... Nf6 {[%clk 0:04:56.4]} 3. Nf3 {[%clk 0:04:48.4]} 3... Qxd5 {[%clk
0:04:55.3]} 4. c4 {[%clk 0:04:46.2]} 4... Qh5 {[%clk 0:04:53.4]} 5. Be2 {[%clk
0:04:44.8]} 5... Bg4 {[%clk 0:04:52.1]} 6. Qb3 {[%clk 0:04:40]} 6... Nbd7 {[%clk
0:04:47.4]} 7. Qxb7 {[%clk 0:04:36.6]} 7... Rd8 {[%clk 0:04:43.3]} 8. d3 {[%clk
0:04:32.1]} 8... e6 {[%clk 0:04:42]} 9. Be3 {[%clk 0:04:28.2]} 9... Bd6 {[%clk
0:04:40.6]} 10. Nc3 {[%clk 0:04:18.1]} 10... O-O {[%clk 0:04:39.2]} 11. Qxa7
{[%clk 0:04:11.9]} 11... Ra8 {[%clk 0:04:35]} 12. Qd4 {[%clk 0:04:07.8]} 12...
e5 {[%clk 0:04:25]} 13. Nxe5 {[%clk 0:03:59.6]} 13... Bxe5 {[%clk 0:04:22.8]}
14. Bxg4 {[%clk 0:03:56.3]} 14... Nxg4 {[%clk 0:04:20.1]} 15. Qxd7 {[%clk
0:03:52.4]} 15... Nxe3 {[%clk 0:04:17.6]} 16. fxe3 {[%clk 0:03:49.2]} 16... Qh4+
{[%clk 0:04:10.4]} 17. g3 {[%clk 0:03:43.8]} 17... Bxg3+ {[%clk 0:04:08.3]} 18.
Kd2 {[%clk 0:03:42.9]} 18... Bf2 {[%clk 0:04:00.3]} 19. Raf1 {[%clk 0:03:23.8]}
19... Rad8 {[%clk 0:03:58.4]} 20. Qf5 {[%clk 0:03:21.7]} 20... Bxe3+ {[%clk
0:03:50]} 21. Kxe3 {[%clk 0:03:20.3]} 21... Rfe8+ {[%clk 0:03:48.9]} 22. Ne4
{[%clk 0:03:09.3]} 22... Qh6+ {[%clk 0:03:37.7]} 23. Ke2 {[%clk 0:02:28.4]}
23... Rxe4+ {[%clk 0:03:22]} 24. Qxe4 {[%clk 0:02:25.2]} 24... Qh5+ {[%clk
0:03:11.2]} 25. Rf3 {[%clk 0:02:20.1]} 25... f6 {[%clk 0:03:04.6]} 26. Kd2
{[%clk 0:02:08.8]} 26... Qa5+ {[%clk 0:02:59.8]} 27. Kc2 {[%clk 0:02:00.1]}
27... Qxa2 {[%clk 0:02:58.4]} 28. Rg1 {[%clk 0:01:44.4]} 28... Qa4+ {[%clk
0:02:56]} 29. Kb1 {[%clk 0:01:35.1]} 29... Re8 {[%clk 0:02:47.9]} 30. Qd4 {[%clk
0:01:07.8]} 1-0

[Event "Live Chess"]
[Site "Chess.com"]
[Date "2024.06.02"]
[Round "-"]
[White "Duke_of_Bebington"]
[Black "DavrosLight"]
[Result "1-0"]
[WhiteElo "1587"]
[BlackElo "802"]
[TimeControl "300"]
[EndTime "7:50:45 PDT"]
[Termination "Duke_of_Bebington won by checkmate"]

1. e4 {[%clk 0:04:55.6]} 1... e5 {[%clk 0:04:58.5]} 2. Nf3 {[%clk 0:04:53.8]}
2... Nc6 {[%clk 0:04:56.3]} 3. Bc4 {[%clk 0:04:52.8]} 3... Nf6 {[%clk
0:04:53.3]} 4. O-O {[%clk 0:04:51]} 4... d6 {[%clk 0:04:45.2]} 5. d3 {[%clk
0:04:49]} 5... Bd7 {[%clk 0:04:31.9]} 6. c3 {[%clk 0:04:48]} 6... Be7 {[%clk
0:04:18.5]} 7. Bb3 {[%clk 0:04:47]} 7... O-O {[%clk 0:04:14.6]} 8. Bc2 {[%clk
0:04:45.1]} 8... d5 {[%clk 0:04:08.2]} 9. exd5 {[%clk 0:04:38.3]} 9... Nxd5
{[%clk 0:04:04.8]} 10. Re1 {[%clk 0:04:37.2]} 10... Bf6 {[%clk 0:03:54.3]} 11.
Nbd2 {[%clk 0:04:33.8]} 11... Re8 {[%clk 0:03:44.4]} 12. Ne4 {[%clk 0:04:32.9]}
12... a6 {[%clk 0:03:21]} 13. h3 {[%clk 0:04:28.1]} 13... h6 {[%clk 0:03:18.7]}
14. Bd2 {[%clk 0:04:12.4]} 14... Nf4 {[%clk 0:03:10.7]} 15. Bxf4 {[%clk
0:04:10.2]} 15... exf4 {[%clk 0:03:09.7]} 16. Qd2 {[%clk 0:04:07.4]} 16... g5
{[%clk 0:02:43.9]} 17. Nxf6+ {[%clk 0:04:05.9]} 17... Qxf6 {[%clk 0:02:37.9]}
18. d4 {[%clk 0:04:04.6]} 18... Bxh3 {[%clk 0:02:20.5]} 19. gxh3 {[%clk
0:03:44.2]} 19... Kh8 {[%clk 0:02:12.1]} 20. Qd3 {[%clk 0:03:39.6]} 20... Rxe1+
{[%clk 0:02:04.8]} 21. Rxe1 {[%clk 0:03:37.7]} 21... Rg8 {[%clk 0:02:04]} 22.
Qh7# {[%clk 0:03:35.5]} 1-0